fUST/lending_fUST_20250803
["ID","MTS","AMOUNT","RATE_DAILY","PERIOD"]
[377065580,1754230268115,-300.00009523,0.00044,120]
[377065581,1754230268139,-600.0,0.00044,120]
[377065582,1754230268163,-150.0,0.00044,120]
[377065583,1754230268187,-8070.57057067,0.00044174,120]
[377065584,1754230268213,-1074.6,0.00044299,120]
[377065585,1754230268238,-3000.0,0.0004449,90]
[377065586,1754230268263,-1074.6,0.0004471,120]
[377065587,1754230268287,-1000.0,0.00044999,120]
[377065588,1754230268310,-860.07147625,0.00045,20]
[377065589,1754230268334,-221.97435565,0.00045,120]
[377065590,1754230268360,-969.56426564,0.00045,120]
[377065591,1754230268383,-150.0,0.00045,120]
[377065592,1754230268410,-151.0,0.00045,120]
[377065593,1754230268434,-151.0,0.000451,120]
[377065594,1754230268459,-1074.6,0.00045121,120]
[377065595,1754230268484,-5000.0,0.0004549,90]
[377065596,1754230268508,-1074.6,0.00045532,120]
[377065597,1754230268532,-1074.6,0.00045943,120]
[377065598,1754230268556,-600.0,0.00046,120]
[377065599,1754230268580,-150.0,0.00046,120]
[377065600,1754230268609,-3180.58655474,0.00046029,120]
[377065601,1754230268633,-265.71801667,0.00046046,120]
[377065602,1754230268657,-265.71801667,0.00046104,120]
[377065603,1754230268683,-265.71801667,0.00046106,120]
[377065604,1754230268706,-3180.58655474,0.00046174,120]
[377065605,1754230268729,-3180.58655474,0.00046192,120]
[377065606,1754230268753,-265.71801667,0.00046266,120]
[377065607,1754230268776,-3180.58655474,0.00046284,120]
[377065608,1754230268800,-1074.6,0.00046354,120]
[377065609,1754230268829,-200.0,0.00046413,60]
[377065610,1754230268857,-200.0,0.00046413,60]
[377065611,1754230268885,-200.0,0.00046413,60]
[377065612,1754230268912,-200.0,0.00046413,60]
[377065613,1754230268941,-200.0,0.00046413,60]
[377065614,1754230268970,-200.0,0.00046413,60]
[377065615,1754230268999,-200.0,0.00046413,60]
[377065616,1754230269028,-200.0,0.00046413,60]
[377065617,1754230269059,-200.0,0.00046413,60]
[377065618,1754230269090,-200.0,0.00046413,60]
[377065619,1754230269121,-200.0,0.00046413,60]
[377065620,1754230269151,-200.0,0.00046413,60]
[377065621,1754230269179,-289.0,0.00046413,60]
[377065622,1754230269204,-5000.0,0.0004649,120]
[377065623,1754230269228,-151.0,0.00046575,31]
[377065624,1754230269252,-151.0,0.00046575,30]
[377065625,1754230269275,-151.0,0.00046575,29]
[377065626,1754230269298,-151.0,0.00046575,30]
[377065627,1754230269323,-151.0,0.00046575,32]
[377065628,1754230269346,-428.4418273,0.00046575,120]
[377065629,1754230269371,-1074.6,0.00046765,120]
[377065630,1754230269394,-1000.0,0.00046999,120]
[377065631,1754230269426,-1074.6,0.00047176,120]
[377065632,1754230269452,-151.0,0.000474,120]
[377065633,1754230269477,-5000.0,0.0004749,120]
[377065634,1754230269502,-1074.6,0.00047587,120]
[377065635,1754230269526,-2000.0,0.000479,120]
[377065636,1754230269550,-1074.6,0.00047998,120]
[377065637,1754230269573,-1000.0,0.00047999,120]
[377065638,1754230269598,-1000.0,0.00048,120]
[377065639,1754230269621,-9222.75293447,0.00048398,120]
[377065640,1754230269645,-1074.6,0.00048409,120]
[377065641,1754230269669,-5000.0,0.0004849,120]
[377065642,1754230269693,-17182.06130004,0.000488,120]
[377065643,1754230269717,-2594.32298212,0.000488,120]
[377065644,1754230269741,-1679.34667033,0.000488,120]
[377065645,1754230269765,-1074.6,0.00048819,120]
[377065646,1754230269789,-1000.0,0.00049,120]
[377065647,1754230269813,-504.7,0.00049,60]
[377065648,1754230269838,-1074.82504804,0.0004923,120]
[377065649,1754230269863,-400.0,0.00049315,120]
[377065650,1754230269887,-5000.0,0.0004949,120]
[377065651,1754230269912,-151.0,0.000498,120]
[377065652,1754230269937,-1000.0,0.00049999,120]
[377065653,1754230269962,-217.51312854,0.0005,20]
[377065654,1754230269986,-539.41647566,0.0005,120]
[377065655,1754230270012,-1000.0,0.0005,120]
[377065656,1754230270036,-2349.0,0.0005,120]
[377065657,1754230270060,-999.82487713,0.0005,120]
[377065658,1754230270084,-158.46983247,0.0005,120]
[377065659,1754230270108,-186.00286663,0.0005,120]
[377065660,1754230270131,-200.73727523,0.0005,30]
[377065661,1754230270154,-173.1063686,0.0005,120]
[377065662,1754230270177,-150.0,0.0005,120]
[377065663,1754230270291,-1000.0,0.0005049,120]
[377065664,1754230270324,-200.0,0.00050871,90]
[377065665,1754230270353,-200.0,0.00050871,90]
[377065666,1754230270383,-200.0,0.00050871,90]
[377065667,1754230270414,-200.0,0.00050871,90]
[377065668,1754230270443,-200.0,0.00050871,90]
[377065669,1754230270473,-200.0,0.00050871,90]
[377065670,1754230270503,-200.0,0.00050871,90]
[377065671,1754230270530,-200.0,0.00050871,90]
[377065672,1754230270559,-200.0,0.00050871,90]
[377065673,1754230270589,-200.0,0.00050871,90]
[377065674,1754230270620,-200.0,0.00050871,90]
[377065675,1754230270649,-200.0,0.00050871,90]
[377065676,1754230270679,-200.0,0.00050871,90]
[377065677,1754230270709,-200.0,0.00050871,90]
[377065678,1754230270739,-200.0,0.00050871,90]
[377065679,1754230270768,-200.0,0.00050871,90]
[377065680,1754230270796,-200.0,0.00050871,90]
[377065681,1754230270826,-364.0,0.00050871,90]
[377065682,1754230270849,-407.0,0.00050892,120]
[377065683,1754230270875,-3000.0,0.00051,85]
[377065684,1754230270899,-3000.0,0.0005101,85]
[377065685,1754230270924,-3000.0,0.0005102,85]
[377065686,1754230270951,-255.395,0.00051025,120]
[377065687,1754230270974,-3000.0,0.0005103,85]
[377065688,1754230270997,-3000.0,0.0005104,85]
[377065689,1754230271021,-3000.0,0.0005105,85]
[377065690,1754230271044,-3000.0,0.0005106,85]
[377065691,1754230271066,-4769.246006,0.0005107,85]
[377065692,1754230271091,-5000.0,0.0005149,120]
[377065693,1754230271114,-1000.0,0.00051999,120]
[377065694,1754230271139,-1000.0,0.00052,120]
[377065695,1754230271163,-6522.68473306,0.00052,120]
[377065696,1754230271186,-151.0,0.00052,120]
[377065697,1754230271209,-151.0,0.000521,120]
[377065698,1754230271233,-200.36,0.00052239,30]
[377065699,1754230271256,-200.0,0.000525,120]
[377065700,1754230271279,-200.0,0.000525,120]
[377065701,1754230271301,-200.0,0.000525,120]
[377065702,1754230271324,-200.0,0.000525,120]
[377065703,1754230271347,-227.0,0.0005321,120]
[377065704,1754230271371,-1000.0,0.0005349,120]
[377065705,1754230271394,-5000.0,0.0005349,120]
[377065706,1754230271422,-407.0,0.00053892,120]
[377065707,1754230271445,-680.13754724,0.00054,120]
[377065708,1754230271471,-1000.0,0.00054,120]
[377065709,1754230271495,-151.0,0.00054495,120]
[377065710,1754230271521,-151.0,0.00054495,120]
[377065711,1754230271545,-198.0,0.00054495,120]
[377065712,1754230271570,-151.0,0.000545,120]
[377065713,1754230271594,-197.42674029,0.00054794,120]
[377065714,1754230271619,-500.0,0.00054795,30]
[377065715,1754230271648,-500.0,0.00054795,30]
[377065716,1754230271679,-416.96,0.00054795,30]
[377065717,1754230271788,151.96504,0.0004,30]
[377065718,1754230271865,151.96504,0.000388,20]
[377065719,1754230271938,738.62147308,0.0005,120]
[377065720,1754230281054,2941.314,0.0005,30]
[377065729,1754230349789,151.0,0.00024,120]
[377065730,1754230351349,151.0,0.000268,120]
[377065731,1754230352721,151.0,0.000296,120]
[377065733,1754230404683,156.0,0.00028324,120]
[377065801,1754230432675,482.6,0.00030137,120]
[377066197,1754230503216,263.55073907,1e-05,5]
[377067123,1754230866352,161.651451,0.00013699,2]
[377067139,1754231056117,160.66151825,0.00023,5]
[377067145,1754231131407,200.0,0.00027263,120]
[377067148,1754231156134,-161.651451,0.00024907,2]
[377067149,1754231156159,-279.16,0.00025402,7]
[377067150,1754231156187,-161.65,0.00025584,7]
[377067151,1754231156215,-161.65,0.00025684,7]
[377067152,1754231156241,-161.65,0.00025784,7]
[377067153,1754231156264,-713.45383108,0.000258,2]
[377067156,1754231204291,-184.56970117,0.00025642,2]
[377067161,1754231311249,200.0,0.00027579,120]
[377067162,1754231319132,9091.29220468,0.00021739,2]
[377067163,1754231319161,8253.13779532,0.00021739,2]
[377067164,1754231320357,214.72339961,0.00028621,120]
[377067167,1754231337494,100000.0,0.00028621,30]
[377067207,1754231433000,-2696.03783503,0.00025642,2]
[377067208,1754231433014,-86.54616892,0.000258,2]
[377067209,1754231433024,-1319.393768,0.0002586,2]
[377067211,1754231433034,-161.65,0.00025884,7]
[377067212,1754231433044,-507.00562877,0.00025906,2]
[377067213,1754231433054,-161.65,0.00025984,7]
[377067214,1754231433064,-161.65,0.00026084,7]
[377067215,1754231433074,-161.65,0.00026184,7]
[377067216,1754231433084,-161.65,0.00026284,7]
[377067217,1754231433095,-161.65,0.00026384,7]
[377067218,1754231433105,-115.03481028,0.00026484,7]
[377067219,1754231433898,151.0,0.00024,120]
[377067220,1754231435344,151.0,0.000268,120]
[377067221,1754231436719,151.0,0.000296,120]
[377067277,1754231438837,-46.61518972,0.00026484,7]
[377067279,1754231438847,-161.65,0.00026584,7]
[377067281,1754231438859,-161.66299097,0.00026684,7]
[377067283,1754231438869,-753.0,0.00026798,2]
[377067285,1754231438879,-152.07181931,0.00026799,2]
[377067287,1754231438891,-147.92818069,0.00026799,2]
[377067289,1754231438900,-1457.6793555,0.000268,7]
[377067440,1754231440898,-10332.64031401,0.000268,7]
[377067442,1754231440910,-205.05787735,0.000268,7]
[377067443,1754231440921,-1451.79733017,0.00027122,2]
[377067444,1754231440930,-6886.85598441,0.00027176,2]
[377067445,1754231440946,-4484.61714035,0.00027176,2]
[377067447,1754231440957,-430.96732641,0.00027176,2]
[377067466,1754231443730,-3911.68521703,0.00027176,2]
[377067467,1754231443739,-439.717724,0.00027369,2]
[377067468,1754231443751,-151.96504,0.00027562,20]
[377067469,1754231443760,-2876.4869024,0.00027857,2]
[377067470,1754231443771,-339.84208996,0.00027876,2]
[377067471,1754231443780,-189.919,0.00027885,2]
[377067472,1754231443791,-160.0,0.00027937,2]
[377067473,1754231443800,-503.81284335,0.0002798,3]
[377067474,1754231443812,-508.9773575,0.00028037,2]
[377067475,1754231443821,-120.24154952,0.000281,2]
[377067476,1754231443833,-2023.40698834,0.000281,2]
[377067478,1754231443842,-200.0,0.00028139,15]
[377067480,1754231443851,-300.0,0.00028139,15]
[377067481,1754231443861,-160.0,0.00028177,2]
[377067482,1754231443870,-151.0,0.000282,2]
[377067483,1754231443879,-151.0,0.000282,2]
[377067485,1754231443889,-151.0,0.000282,2]
[377067486,1754231443899,-187.56482324,0.000282,2]
[377067487,1754231443909,-187.56482324,0.000282,2]
[377067488,1754231443918,-209.4082719,0.000282,2]
[377067489,1754231443929,-151.61367767,0.000282,2]
[377067490,1754231443943,-629.03,0.000282,2]
[377067491,1754231443952,-181.847,0.000282,19]
[377067492,1754231443962,-151.0,0.000283,2]
[377067493,1754231443972,-151.0,0.000283,2]
[377067494,1754231443985,-224.12964647,0.000283,2]
[377067495,1754231443996,-224.0,0.000283,2]
[377067496,1754231444005,-151.0,0.000284,2]
[377067497,1754231444016,-151.0,0.000284,2]
[377067498,1754231444026,-151.0,0.000285,2]
[377067499,1754231444036,-297.25929295,0.000285,2]
[377067500,1754231444046,-151.37185123,0.00028564,2]
[377067501,1754231444058,-151.0,0.000286,2]
[377067502,1754231444069,-347.0,0.00028607,2]
[377067503,1754231444083,-163.69326997,0.0002862,2]
[377067504,1754231444093,-500.0,0.0002862,2]
[377067505,1754231444105,-201.69475241,0.0002862,2]
[377067506,1754231444114,-500.0,0.0002862,2]
[377067507,1754231444125,-401.414192,0.0002862,2]
[377067508,1754231444134,-500.0,0.0002862,2]
[377067509,1754231444143,-250.0,0.00028621,10]
[377067510,1754231444153,-250.0,0.00028621,10]
[377067511,1754231444164,-250.0,0.00028621,10]
[377067512,1754231444173,-359.847262,0.00028621,10]
[377067513,1754231444183,-238.53977797,0.00028621,10]
[377067514,1754231444192,-461.3608491,0.00028621,2]
[377067515,1754231444202,-530.25352151,0.00028621,10]
[377067588,1754231446990,-292.92,0.00025884,7]
[377067592,1754231447000,-292.92,0.00028326,30]
[377067594,1754231447010,-500.0,0.00028619,2]
[377067596,1754231447021,-556.46688052,0.00028621,10]
[377067598,1754231447031,-200.0,0.00028621,10]
[377067600,1754231447040,-977.14509581,0.00028621,2]
[377067602,1754231447050,-4130.74802367,0.00028621,2]
[377067604,1754231447062,-798.34531143,0.00028621,2]
[377067799,1754231569186,200.0,0.00030137,120]
[377067800,1754231650179,1000.0,0.00023063,2]
[377067804,1754231953740,1032.0,0.00030136,120]
[377067819,1754232239558,161.387689,0.00013699,2]
[377067821,1754232309667,442.59494414,0.00030137,120]
[377067822,1754232332875,-161.387689,0.00023973,2]
[377067823,1754232332897,-227.83,0.00025234,7]
[377067824,1754232332917,-339.31823834,0.00026521,2]
[377067825,1754232332938,-227.83,0.00027766,7]
[377067826,1754232332957,-219.858862,0.00027786,2]
[377067827,1754232332977,-509.63089764,0.00027955,2]
[377067829,1754232416091,-182.69765871,0.00027955,2]
[377067831,1754232452004,900.0,0.00030137,120]
[377067837,1754232508324,116986.16394605,0.00028609,30]
[377067937,1754232632028,-300.0,0.00027986,2]
[377067939,1754232632038,-232.0,0.00027986,2]
[377067941,1754232632048,-5501.3459836,0.00027987,2]
[377068237,1754232637933,-10172.7667937,0.00027987,2]
[377068238,1754232637943,-226.21215889,0.00028037,2]
[377068239,1754232637953,-566.13,0.000282,2]
[377068240,1754232637963,-1000.0,0.000283,2]
[377068241,1754232637973,-219.12564734,0.00028518,2]
[377068242,1754232637982,-5070.9066639,0.00028609,2]
[377068243,1754232638088,-162.74872164,0.00028609,2]
[377068244,1754232638098,-204.98950828,0.00028609,2]
[377068245,1754232638108,-10014.20142812,0.00028609,2]
[377068246,1754232638118,-177.2,0.00028609,30]
[377068247,1754232638127,-645.59013571,0.00028621,2]
[377068248,1754232638140,-151.0,0.000287,2]
[377068249,1754232638150,-162.02155506,0.00028725,10]
[377068250,1754232638159,-151.0,0.000288,2]
[377068251,1754232638169,-167.62301021,0.000288,7]
[377068252,1754232638179,-312.59233574,0.00028841,30]
[377068253,1754232638188,-151.0,0.000289,2]
[377068254,1754232638198,-292.5185859,0.00029,2]
[377068255,1754232638208,-874.27977792,0.00029,2]
[377068256,1754232638218,-302.1,0.00029285,2]
[377068257,1754232638227,-200.0,0.00029385,15]
[377068258,1754232638237,-300.0,0.00029385,15]
[377068260,1754232638246,-162.02155506,0.00029589,10]
[377068262,1754232638255,-502.30217876,0.0002982,2]
[377068263,1754232638264,-500.0,0.0002982,5]
[377068265,1754232638273,-518.37749102,0.0002982,5]
[377068266,1754232638283,-501.05183301,0.0002982,5]
[377068267,1754232638292,-622.81382546,0.0002982,5]
[377068268,1754232638301,-226.52354949,0.00029857,5]
[377068269,1754232638311,-500.0,0.00029857,5]
[377068270,1754232638320,-500.0,0.00029857,5]
[377068271,1754232638330,-501.83596661,0.00029857,5]
[377068272,1754232638340,-500.0,0.00029857,5]
[377068273,1754232638350,-500.0,0.00029857,5]
[377068274,1754232638359,-500.0,0.00029857,5]
[377068275,1754232638369,-503.54914706,0.00029857,5]
[377068276,1754232638382,-500.0,0.00029862,5]
[377068277,1754232638391,-500.0,0.00029862,5]
[377068278,1754232638400,-500.0,0.00029875,5]
[377068279,1754232638409,-180.42,0.00029876,24]
[377068280,1754232638421,-500.0,0.00029921,5]
[377068282,1754232638431,-502.61642722,0.00029921,5]
[377068283,1754232638441,-500.0,0.00029983,5]
[377068284,1754232638451,-500.01894309,0.00029983,5]
[377068285,1754232638461,-562.08442881,0.00029983,5]
[377068286,1754232638470,-500.0,0.00029983,5]
[377068287,1754232638479,-500.0,0.00029983,5]
[377068288,1754232638489,-500.0,0.00029983,5]
[377068289,1754232638499,-500.0,0.00029983,5]
[377068290,1754232638508,-500.0,0.00029983,5]
[377068291,1754232638518,-500.0,0.00029983,5]
[377068292,1754232638527,-500.0,0.00029983,5]
[377068293,1754232638537,-289.69348944,0.00029984,2]
[377068294,1754232638546,-151.0,0.00029984,2]
[377068295,1754232638556,-151.0,0.00029984,2]
[377068296,1754232638566,-151.0,0.00029984,2]
[377068297,1754232638575,-500.0,0.00029984,2]
[377068298,1754232638584,-151.0,0.00029984,2]
[377068299,1754232638594,-500.0,0.00029984,5]
[377068300,1754232638603,-401.92020003,0.0003,10]
[377068301,1754232638612,-1560.58065866,0.0003,10]
[377068302,1754232638621,-165.46,0.0003,5]
[377068303,1754232638631,-500.0,0.00030004,5]
[377068304,1754232638640,-503.3165218,0.00030004,5]
[377068305,1754232638649,-500.0,0.00030004,5]
[377068306,1754232638658,-500.0,0.00030108,5]
[377068307,1754232638668,-352.69100606,0.0003013,15]
[377068308,1754232638678,-212.454176,0.00030165,5]
[377068309,1754232638687,-500.0,0.00030175,5]
[377068310,1754232638696,-500.0,0.00030175,5]
[377068311,1754232638705,-500.0,0.00030175,5]
[377068312,1754232638715,-500.0,0.00030175,5]
[377068313,1754232638723,-200.0,0.00030175,5]
[377068314,1754232638732,-420.0,0.00030225,2]
[377068315,1754232638742,-194.23164683,0.00030246,2]
[377068316,1754232638751,-500.0,0.00030257,5]
[377068317,1754232638759,-151.0,0.00030258,2]
[377068318,1754232638768,-151.0,0.00030258,2]
[377068319,1754232638778,-151.0,0.00030258,2]
[377068320,1754232638787,-537.75805718,0.00030258,2]
[377068321,1754232638796,-198.0,0.00030258,2]
[377068322,1754232638805,-1000.0,0.00030368,5]
[377068323,1754232638814,-1000.0,0.00030405,5]
[377068324,1754232638823,-547.10620068,0.00030405,5]
[377068325,1754232638832,-500.0,0.00030405,5]
[377068326,1754232638841,-1006.47691141,0.00030405,5]
[377068327,1754232638851,-1000.0,0.00030405,5]
[377068328,1754232638860,-1000.0,0.0003041,5]
[377068329,1754232638870,-500.0,0.0003041,5]
[377068330,1754232638880,-1008.10068389,0.00030469,5]
[377068331,1754232638893,-505.71521664,0.00030531,5]
[377068332,1754232638902,-1000.0,0.00030531,5]
[377068333,1754232638911,-1000.0,0.00030531,5]
[377068334,1754232638920,-1013.58946252,0.00030531,5]
[377068335,1754232638930,-325.35281868,0.00030531,5]
[377068336,1754232638939,-1000.0,0.00030531,5]
[377068337,1754232638951,-151.0,0.00030532,2]
[377068338,1754232638963,-151.0,0.00030532,2]
[377068339,1754232638973,-153.53438336,0.00030532,2]
[377068340,1754232638982,-1000.0,0.00030552,5]
[377068341,1754232638991,-858.45193933,0.00030552,5]
[377068342,1754232639000,-1000.0,0.00030656,5]
[377068343,1754232639009,-1000.0,0.00030723,5]
[377068344,1754232639018,-501.87160946,0.00030723,5]
[377068345,1754232639027,-1000.0,0.00030723,5]
[377068346,1754232639036,-177.2,0.00030756,30]
[377068347,1754232639049,-160.0,0.00030806,2]
[377068348,1754232639062,-895.59999331,0.00030916,5]
[377068349,1754232639076,-1500.0,0.00030953,5]
[377068350,1754232639089,-1527.6003282,0.00030953,5]
[377068351,1754232639101,-1399.68102324,0.00030958,5]
[377068352,1754232639111,-302.05632351,0.0003099,2]
[377068353,1754232639124,-500.0,0.00031079,5]
[377068354,1754232639137,-245.79341206,0.00031079,5]
[377068355,1754232639151,-266.29760607,0.00031079,5]
[377068356,1754232639164,-1346.82045989,0.000311,5]
[377068357,1754232639185,-1004.59678505,0.00031204,5]
[377068358,1754232639197,-501.38271662,0.00031271,5]
[377068359,1754232639209,-500.0,0.00031271,5]
[377068360,1754232639221,-260.0,0.00031354,2]
[377068361,1754232639235,-280.5224831,0.00031401,2]
[377068362,1754232639247,-525.25878385,0.00031501,5]
[377068363,1754232639260,-360.0,0.00031901,2]
[377068364,1754232639271,-200.0,0.00032208,15]
[377068365,1754232639283,-200.0,0.00032208,15]
[377068366,1754232639299,-300.0,0.00032208,15]
[377068367,1754232639311,-151.0,0.000323,120]
[377068368,1754232639323,-460.0,0.00032449,2]
[377068369,1754232639335,-177.2,0.00032903,30]
[377068370,1754232639346,-200.0,0.00032907,120]
[377068371,1754232639358,-560.0,0.00032997,2]
[377068372,1754232639367,-167.0,0.00033,14]
[377068373,1754232639378,-226.21215889,0.00033037,2]
[377068374,1754232639390,-1420.8,0.00033125,10]
[377068375,1754232639401,-2147.0,0.00033135,2]
[377068376,1754232639413,-970.0,0.00033135,2]
[377068377,1754232639428,-407.0,0.00033135,2]
[377068378,1754232639439,-1176.95,0.00033273,120]
[377068379,1754232639451,-1704.97,0.00033354,10]
[377068380,1754232639462,-277.7637517,0.00033523,30]
[377068381,1754232639474,-660.0,0.00033545,2]
[377068382,1754232639486,-331.76095012,0.00033619,2]
[377068384,1754232639499,-200.0,0.00033661,120]
[377068386,1754232639511,-1176.95,0.00033684,120]
[377068388,1754232639523,-1184.0,0.00034083,10]
[377068390,1754232639535,-760.0,0.00034093,2]
[377068393,1754232639545,-1176.95,0.00034095,120]
[377068395,1754232639555,-200.0,0.00034205,120]
[377068397,1754232639565,-200.0,0.00034233,120]
[377068400,1754232639575,-161.387689,0.00034247,2]
[377068402,1754232639587,-20894.4558411,0.00034263,2]
[377068404,1754232639600,-260.96350297,0.00034263,2]
[377068406,1754232639614,-1956.52,0.00034263,3]
[377068408,1754232639625,-1493.13,0.00034263,3]
[377068411,1754232639636,-746.57,0.00034263,3]
[377068413,1754232639653,-373.28,0.00034263,3]
[377068415,1754232639664,-186.64,0.00034263,3]
[377068417,1754232639674,-559.95,0.00034263,3]
[377068419,1754232639686,-500.0,0.00034273,5]
[377068421,1754232639698,-500.0,0.00034273,5]
[377068423,1754232639708,-308.59479276,0.00034273,5]
[377068425,1754232639718,-500.0,0.00034273,5]
[377068427,1754232639728,-500.0,0.00034273,5]
[377068429,1754232639738,-500.0,0.00034273,5]
[377068431,1754232639748,-500.0,0.00034273,2]
[377068434,1754232639760,-500.0,0.00034273,5]
[377068436,1754232639770,-500.0,0.00034273,5]
[377068438,1754232639781,-500.0,0.00034273,5]
[377068440,1754232639792,-500.0,0.00034273,5]
[377068442,1754232639803,-500.0,0.00034273,2]
[377068444,1754232639814,-500.0,0.00034273,5]
[377068447,1754232639825,-500.0,0.00034273,5]
[377068449,1754232639836,-158.56150722,0.00034273,5]
[377068451,1754232639847,-500.0,0.00034273,5]
[377068453,1754232639858,-500.0,0.00034273,5]
[377068455,1754232639869,-500.0,0.00034273,5]
[377068457,1754232639879,-501.93875642,0.00034273,5]
[377068459,1754232639890,-500.0,0.00034273,5]
[377068461,1754232639900,-500.0,0.00034273,5]
[377068464,1754232639910,-500.0,0.00034273,5]
[377068466,1754232639922,-500.0,0.00034273,5]
[377068468,1754232639933,-500.0,0.00034273,5]
[377068471,1754232639943,-500.0,0.00034273,5]
[377068473,1754232639954,-500.49503637,0.00034273,5]
[377068475,1754232639964,-561.87023534,0.00034273,5]
[377068477,1754232639975,-500.0,0.00034273,5]
[377068479,1754232639985,-551.299838,0.00034273,5]
[377068481,1754232639996,-500.0,0.00034273,5]
[377068483,1754232640007,-500.0,0.00034273,5]
[377068486,1754232640018,-501.40624993,0.00034273,5]
[377068488,1754232640029,-500.0,0.00034273,5]
[377068490,1754232640040,-501.89009665,0.00034273,5]
[377068492,1754232640050,-500.0,0.00034273,5]
[377068494,1754232640062,-500.0,0.00034273,5]
[377068497,1754232640073,-161.98013008,0.00034273,5]
[377068499,1754232640084,-500.0,0.00034273,5]
[377068500,1754232640094,-500.0,0.00034273,5]
[377068501,1754232640105,-500.0,0.00034273,5]
[377068502,1754232640115,-501.92212611,0.00034273,5]
[377068503,1754232640126,-500.0,0.00034273,5]
[377068505,1754232640136,-500.0,0.00034273,5]
[377068507,1754232640147,-500.0,0.00034273,5]
[377068509,1754232640158,-500.0,0.00034273,5]
[377068512,1754232640169,-500.0,0.00034273,5]
[377068526,1754232640294,-500.0,0.00034273,5]
[377068528,1754232640304,-500.0,0.00034273,5]
[377068530,1754232640314,-500.0,0.00034273,5]
[377068532,1754232640324,-500.0,0.00034273,3]
[377068534,1754232640334,-500.0,0.00034273,5]
[377068536,1754232640343,-500.0,0.00034273,5]
[377068538,1754232640353,-645.44337989,0.00034273,5]
[377068540,1754232640363,-500.0,0.00034273,5]
[377068542,1754232640372,-500.0,0.00034273,5]
[377068544,1754232640390,-500.0,0.00034273,5]
[377068546,1754232640399,-500.0,0.00034273,5]
[377068548,1754232640409,-500.0,0.00034273,2]
[377068550,1754232640420,-924.82,0.000343,7]
[377068552,1754232640429,-1176.95,0.00034506,120]
[377068554,1754232640439,-167.0,0.00034521,30]
[377068556,1754232640448,-860.0,0.00034641,2]
[377068558,1754232640458,-1099.47093568,0.0003471,2]
[377068560,1754232640468,-20894.4558411,0.00034811,2]
[377068562,1754232640477,-260.96350297,0.00034811,2]
[377068564,1754232640486,-1000.0,0.00034821,5]
[377068566,1754232640495,-1000.0,0.00034821,5]
[377068568,1754232640504,-889.7900064,0.00034821,5]
[377068569,1754232640588,-110.2099936,0.00034821,5]
[377068570,1754232640597,-500.98868041,0.00034821,5]
[377068571,1754232640607,-393.77772868,0.00034821,5]
[377068572,1754232640615,-1104.84922614,0.00034821,2]
[377068573,1754232640625,-1000.0,0.00034821,5]
[377068574,1754232640635,-1000.0,0.00034821,5]
[377068575,1754232640644,-1000.0,0.00034821,5]
[377068576,1754232640653,-1000.0,0.00034821,2]
[377068577,1754232640663,-1000.0,0.00034821,5]
[377068578,1754232640672,-1000.0,0.00034821,5]
[377068579,1754232640681,-1000.0,0.00034821,5]
[377068580,1754232640691,-1000.0,0.00034821,5]
[377068581,1754232640700,-1000.0,0.00034821,5]